Cogmind - Beta 13 X1 @@@ ROGUE MODE // 2023.07.29 @ 23:48:24 Player: Runia Result: Destroyed by YI-UF0 with YI-UF0's Doublenader Performance ------------- Evolutions (0) 0 Regions Visited (2) 400 Robots Destroyed (23) 115 Value Destroyed (339) 339 Prototype IDs (7) 140 Alien Tech Used (0) 0 Bonus (0) 0 TOTAL SCORE: 994 Bonus ------- None Cogmind --------- Core Integrity 0/250 Matter 290/300 Energy 80/100 System Corruption 0% Temperature Cool (0) Movement Treading (160) Location -10/Mines Parts ------- > --- POWER (1) -------- (None) > --- PROPULSION (2) --- Light Treads > --- UTILITY (2) ------ Heat Sink Small Storage Unit > --- WEAPON (2) ------- Improved Medium Laser Assault Rifle > --- INVENTORY (8) ---- Light Treads Light Treads High-capacity Matter Pod (200) ECM Suite Improved Medium Laser Assault Rifle Heavy Hammer Peak State ------------ > --- POWER ------------ Ion Engine > --- PROPULSION ------- Light Treads Light Treads > --- UTILITY ---------- Heat Sink Small Storage Unit > --- WEAPON ----------- Improved Medium Laser Assault Rifle > --- INVENTORY -------- Light Treads Light Treads High-capacity Matter Pod ECM Suite Improved Medium Laser Assault Rifle Assault Rifle Mining Laser [Rating: 10] Favorites ----------- Power Ion Engine Engine Ion Engine Propulsion Light Treads Treads Light Treads Leg Aluminum Leg Utility Small Storage Unit Device Heat Sink Storage Small Storage Unit Weapon Assault Rifle Energy Gun Improved Medium Laser Ballistic Gun Assault Rifle Build | -11 -10 -10 ------- Run | Jun Mat Min Slots Evolved . | . . . Power . | . . . Propulsion . | . . . Utility . | . . . Weapon . | . . . Parts Attached 12 | 2 9 1 Power 2 | . 2 . Engine 2 | . 2 . Core . | . . . Reactor . | . . . Propulsion 3 | 2 1 . Treads 3 | 2 1 . Leg . | . . . Wheel . | . . . Hover . | . . . Flight . | . . . Utility 1 | . 1 . Device 1 | . 1 . Storage . | . . . Processor . | . . . Hackware . | . . . Protection . | . . . Artifact . | . . . Weapon 6 | . 5 1 Energy Gun 2 | . 2 . Energy Cannon . | . . . Ballistic Gun 4 | . 3 1 Ballistic Cannon . | . . . Launcher . | . . . Special Weapon . | . . . Impact Weapon . | . . . Slashing Weapon . | . . . Piercing Weapon . | . . . Special Melee Weapon . | . . . Unidentified Prototypes 1 | . 1 . Parts Lost 3 | . . 3 Power 1 | . . 1 Propulsion 1 | . . 1 Utility . | . . . Weapon 1 | . . 1 Highest Loss Streak 3 | . . 3 To Critical Strikes . | . . . Average Slot Usage (%) 98 | . 98 99 Engine 13 | . 14 13 Treads 28 | . 28 28 Device 13 | . 12 14 Storage 14 | . 14 14 Energy Gun 6 | . . 14 Ballistic Gun 21 | . 27 14 Naked Turns . | . . . Heaviest Build 16 | 13 16 16 Greatest Support 40 | 40 40 40 Greatest Overweight (x) . | . . . Average Overweight (x) . | . . . Largest Inventory Capacity 8 | 8 8 8 Average Capacity 8 | 8 8 8 Most Carried 8 | 6 8 8 Average Carried 7 | 4 7 8 Final Capacity 8 | 8 8 8 Final Carried 8 | 4 8 7 Class Distribution -------------------- 100% | Mutant Dominant Class ---------------- Mutant | -10/Materials Mutant | -10/Mines Resources | -11 -10 -10 ----------- Run | Jun Mat Min Matter Collected 679 | 200 289 190 Remotely . | . . . Salvage Created 650 | . 599 51 Parts 57 | . 53 4 Haulers Intercepted 2 | . 2 . Recyclers Shooed 1 | . 1 . Parts Field Recycled . | . . . Retrieved Matter . | . . . Parts Self-Destructed . | . . . Prevented . | . . . Kills | -11 -10 -10 ------- Run | Jun Mat Min Combat Hostiles Destroyed 16 | . 13 3 Guns 12 | . 9 3 AOE 4 | . 4 . Classes Destroyed 6 | . 6 . Worker 1 | . 1 . Hauler 2 | . 2 . Recycler 3 | . 3 . Watcher 1 | . 1 . Swarmer 11 | . 8 3 Grunt 5 | . 5 . Best Kill Streak 9 | . 9 3 Combat Bots Only 8 | . 8 3 Max Kills in Single Turn 5 | . 5 2 Gunslinging 1 | . . 1 Exploded 4 | . 4 . Melee . | . . . Uniques/NPCs Destroyed . | . . . Combat | -11 -10 -10 -------- Run | Jun Mat Min Damage Taken 929 | . 405 524 Core 255 | . 47 208 Absorbed by Shields . | . . . Core Remaining (%) 100 | 100 . . Volleys Fired 48 | . 38 10 Largest 2 | . 2 2 Hottest 76 | . 76 76 Shots Fired 96 | . 76 20 Gun 96 | . 76 20 Cannon . | . . . Launcher . | . . . Special . | . . . Kinetic 85 | . 75 10 Thermal 11 | . 1 10 Explosive . | . . . Electromagnetic . | . . . Robot Hit Streak 10 | . 10 3 Robot Miss Streak 5 | . 5 4 Penetration Max . | . . . Secondary Targets 3 | . 2 1 Max Gunslinging Chain 1 | . 1 1 Shots Hit Robots 58 | . 48 10 Core Hits 34 | . 31 3 Critical Kills . | . . . Critical Parts Destroyed . | . . . Critical Strikes . | . . . Melee Attacks . | . . . Impact . | . . . Slashing . | . . . Piercing . | . . . Sneak Attacks . | . . . Combat Hostiles . | . . . Follow-up Attacks . | . . . Damage Inflicted 1074 | . 929 145 Guns 654 | . 509 145 Cannons . | . . . Explosions 420 | . 420 . Melee . | . . . Ramming . | . . . Kinetic 566 | . 493 73 Thermal 88 | . 16 72 Explosive 420 | . 420 . Electromagnetic . | . . . Impact . | . . . Slashing . | . . . Piercing . | . . . Highest Corruption . | . . . Average Corruption . | . . . Corruption Purged . | . . . Corruption Blocked . | . . . Overload Shots . | . . . Overflow Damage 18 | . 18 . Projectiles . | . . . Explosions 18 | . 18 . Melee . | . . . Knockbacks . | . . . Impact . | . . . Kinetic . | . . . Secondary . | . . . Self-Inflicted Damage 121 | . 121 . Shots 2 | . 2 . Rammed . | . . . Targets Rammed . | . . . Kicked . | . . . Crushed . | . . . Highest Temperature 12 | . 12 . Average Temperature 7 | . 7 . Received Heat Transfer 78 | . 78 . Siege Activations . | . . . Robots Corrupted . | . . . Combat Hostiles . | . . . Parts Fried . | . . . Impact Corruptions . | . . . Robots Melted . | . . . Combat Hostiles . | . . . Parts Melted . | . . . Heat Transferred 185 | . 37 148 Parts Sabotaged . | . . . Parts Stolen . | . . . Parts Stripped . | . . . Power Chain Reactions . | . . . Missiles Intercepted . | . . . Alert | -11 -10 -10 ------- Run | Jun Mat Min Peak Influence 400 | . 400 140 Initial 55 | . . 55 Average 164 | . 249 41 Maximum Alert Level 2 | . 2 . Low Security (%) 53 | 100 21 100 Level 1 42 | . 71 . Level 2 3 | . 6 . Level 3 . | . . . Level 4 . | . . . Level 5 . | . . . High Security . | . . . Max Security . | . . . Squads Dispatched 2 | . 2 . Investigation 2 | . 2 . Extermination . | . . . Reinforcement . | . . . Assault . | . . . Garrison . | . . . Intercept . | . . . Searches Triggered . | . . . Construction Impeded . | . . . Haulers Reinforced . | . . . Active Scanning Responses . | . . . Cargo Convoy Interrupts . | . . . Stealth | -11 -10 -10 --------- Run | Jun Mat Min Distress Signals . | . . . Communications Jammed . | . . . Distress Signals . | . . . Times Spotted 18 | . 14 4 Peak Tracking Total 5 | . 5 3 Tactical Retreats . | . . . Traps | -11 -10 -10 ------- Run | Jun Mat Min Traps Triggered 1 | . 1 . Indirectly . | . . . Trap Hack Attempts . | . . . Triggered . | . . . Disarmed . | . . . Reprogrammed . | . . . Reused . | . . . Traps Extracted . | . . . Installed . | . . . Triggered . | . . . Machines | -11 -10 -10 ---------- Run | Jun Mat Min Machines Disabled 2 | . 2 . Max in Single Turn 1 | . 1 . Machines Repaired . | . . . Machines Sabotaged . | . . . Overloaded Fab Kills . | . . . Hacking | -11 -10 -10 --------- Run | Jun Mat Min Machines Accessed 9 | . 9 . Terminals 7 | . 7 . Fabricators . | . . . Repair Stations . | . . . Recycling Units 2 | . 2 . Scanalyzers . | . . . Garrison Access . | . . . Total Hacks 32 | . 32 . Successful 15 | . 15 . Failed 16 | . 16 . Catastrophic 4 | . 4 . Database Lockouts 1 | . 1 . Manual 12 | . 12 . Terminals 29 | . 29 . Fabricators . | . . . Repair Stations . | . . . Recycling Units 3 | . 3 . Scanalyzers . | . . . Garrison Access . | . . . Terminal Hacks 12 | . 12 . Part Schematic 2 | . 2 . Robot Analysis 1 | . 1 . Prototype ID Bank 3 | . 3 . Terminal Index 1 | . 1 . Locate Traps 2 | . 2 . Hauler Manifests 1 | . 1 . Zone Layout 2 | . 2 . Fabricator Hacks . | . . . Repair Station Hacks . | . . . Recycling Unit Hacks 1 | . 1 . Retrieve Components 1 | . 1 . Scanalyzer . | . . . Garrison Access Hacks . | . . . Unauthorized Hacks 2 | . 2 . Terminals 1 | . 1 . Operators 1 | . 1 . Fabricators . | . . . Repair Stations . | . . . Recycling Units 1 | . 1 . Tunnel 1 | . 1 . Scanalyzers . | . . . Garrison Access . | . . . Data Cores Recovered . | . . . Used . | . . . Hacking Detections 7 | . 7 . Full Trace Events 1 | . 1 . Feedback Events . | . . . Feedback Blocked . | . . . Robot Schematics Acquired . | . . . Robots Built . | . . . Authchips . | . . . Time . | . . . Total Robot Build Rating . | . . . Part Schematics Acquired 2 | . 2 . Parts Built . | . . . Authchips . | . . . Time . | . . . Total Part Build Rating . | . . . Parts Repaired . | . . . Time . | . . . Parts Recycled . | . . . Recycled Matter . | . . . Retrieved Matter . | . . . Retrieved Components 9 | . 9 . Parts Scanalyzed . | . . . Part Schematics Acquired . | . . . Parts Damaged . | . . . Bothacking | -11 -10 -10 ------------ Run | Jun Mat Min Used RIF Installer . | . . . Robots Hacked . | . . . Non-combat . | . . . Combat . | . . . Robot Hacks Applied . | . . . Relay Couplers Released . | . . . Fabnet Peak Effective % . | . . . Robots Rewired . | . . . Allies Hacked . | . . . Hacks Repelled . | . . . Allies | -11 -10 -10 -------- Run | Jun Mat Min Total Allies . | . . . Largest Group . | . . . Highest-Rated Group . | . . . Highest-Rated Ally . | . . . Total Orders . | . . . Ally Attacks . | . . . Total Damage . | . . . Kills . | . . . Allies Corrupted . | . . . Allies Melted . | . . . Intel | -11 -10 -10 ------- Run | Jun Mat Min Robot Analysis Total 1 | . 1 . Derelict Logs Recovered . | . . . Drone Launches . | . . . Drone Recoveries . | . . . Exploration | -11 -10 -10 ------------- Run | Jun Mat Min Turns Passed 1391 | 7 826 558 Spaces Moved 743 | 3 421 319 Core . | . . . Treads 743 | 3 421 319 Legs . | . . . Wheels . | . . . Hover . | . . . Flight . | . . . Fastest Speed 160 | 160 160 160 Average Speed 160 | 160 160 160 Slowest Speed 160 | 160 160 160 Overloaded Moves . | . . . Propulsion Burnouts . | . . . Robots Hopped . | . . . Cave-ins Triggered . | . . . Exploration Rate (%) 52 | 2 86 69 Regions Visited 2 Branch Regions 1 Pre-discovered Areas 1 | . 1 . Known Exits Taken . | . . . Unknown Exits Taken 2 | 1 1 . Scrap Searched 1 | . . 1 Spaces Dug . | . . . Terrain Destroyed 12 | . 12 . Melee . | . . . Projectile . | . . . AOE 12 | . 12 . Terrain Rammed . | . . . Walls Destroyed . | . . . Machines Disabled . | . . . Actions | -11 -10 -10 --------- Run | Jun Mat Min Total 863 | 6 510 347 Wait 36 | . 19 17 Move 741 | 2 420 319 Hop . | . . . Pick Up 11 | . 11 . Fast Attach 4 | . 4 . Attach 3 | 2 . 1 Detach . | . . . Swap 5 | . 5 . Drop 15 | 2 13 . Fire 48 | . 38 10 Melee . | . . . Ram . | . . . Kick . | . . . Crush . | . . . Escape Stasis . | . . . Rewire . | . . . Trap . | . . . Miscellaneous . | . . . Route ------- -11/Junkyard -10/Materials (discovered 5 exits: [*Mat x3] / [*Min x2]) -10/Mines (discovered 2 exits: [*Mat] / [*Exi]) History --------- Turn | Location | Event 4 | -11/Junkyard | Discovered new exit (range 0) 8 | -11/Junkyard | Entered Materials 199 | -10/Materials | Destroyed 8 combat bots 230 | -10/Materials | Discovered new exit (range 12) 316 | -10/Materials | Build established: Mutant 367 | -10/Materials | Discovered new exit (range 12) 424 | -10/Materials | Discovered new exit (range 13) 448 | -10/Materials | Central database locked down 496 | -10/Materials | Discovered new exit (range 16) 721 | -10/Materials | Discovered new exit (range 5) 834 | -10/Materials | Entered Mines 876 | -10/Mines | Deemed a non-threat by the Exiles lab entrance 876 | -10/Mines | Discovered new exit (range 5) 1198 | -10/Mines | Discovered new exit (range 9) 1385 | -10/Mines | Core integrity fell below 50% 1392 | -10/Mines | Destroyed by YI-UF0 with YI-UF0's Doublenader Last Messages --------------- 01169_ K-01 Serf collects debris. 01178_ U-05 Engineer builds a Wall. 01185_ Acquired 1 matter. 01190_ K-01 Serf collects debris. 01198_ EXIT=FOUND 01223_ S-10 Pest destroyed. 01223_ Switching to secondary target: S-10 Pest. 01223_ S-10 Pest destroyed. 01232_ Acquired 18 matter. 01277_ U-05 Engineer lays Concrete. 01358_ U-05 Engineer builds a Wall. 01358_ U-05 Engineer destroyed. 01375_ U-05 Engineer lays Concrete. 01377_ U-05 Engineer destroyed. 01378_ YI-UF0 mumbles something. 01379_ The unstable cave ceiling collapses. 01386_ Ion Engine destroyed. 01390_ Assault Rifle destroyed. 01390_ Lgt. Treads destroyed. 01392_ U-05 Engineer lays Concrete. Map ----- +----------------------------------------------------+ | | | | | | | | | | | | | | | ?????????????????????????????????????????????????? | | ?????????????????????????????????????????????????? | | ???????????????????????????????????????????#####?? | | ??????????????????????????????????????????## ##? | | ??????????????????????????????????????????# ## | | ??????????????????????????????????####???## # | | ?????????????????????????????????## ##### | | ????????????????????????????????## | | ????????????????????????????##### # | | ?????###############???????## ##### | | ?????# #???????# < ## ##???? | | ?????# #####??##u ##########????? | | ?????# =%*#### ##?????????????? | | ?????# ###%# ######??????????????? | | ?????# """ """ """ #?#=# ####???####????????? | | ?????# """ """ """ ### ## #??# ##???????? | | ?????# """ """ """ ## ### #???????? | | ?????# ## #???????? | | ?????###############?# @ #?????????? | | ?????????????????????# #??????????? | | ?????????????????????# = #??????????? | | ?????????????????????# #??????? ??? | | ?????????????????????### # ##??????? #?? | | ???????????????????????##?# #?????? #?? | | ??????????????????????????#### #????? ??? | | ?????????????????????????????? #???? #???? | | ??????????????????????????????? g ##?## #???? | | ???????????????????????????????# ## ##### | | ????????????????????????????????# % # | | ?????????????????????????????????## # | | ????????????????????????????????### !! #? | | ????????????????????????????????# # == #? | | ????????????????????????????????# # % #? | | ????????????????????????????????# # # #####? | | ????????????????????????????????# # !! #? #????? | | ??????????????????????????????### ####### #??? | | ?????????####????????????????## #??? | | ????????## ##???????????????# #??? | | ???????## #??????????????## ###########??? | | ???????# ##??????????????# [ ### #??#????? | | ##????## ##????????????#?## * #?????????? | | ##??## ###??????????# # ####?????????? | | #### ##???????### ###????????????? | +----------------------------------------------------+ Best States ------------- Heat Dissipation 35 Energy Generation 10 Energy Capacity 250 Matter Stores 300 Matter Capacity 300 Sight Range 16 Terrain Scan Density 10 Evasion (%) 40 Recoil Reduction 2 Item Schematics ----------------- Huge Storage Unit | -10/Materials | Hacked Hcp. Storage Unit | -10/Materials | Hacked Robot Schematics ------------------ None Fabricated ------------ Nothing Alien Tech Used ----------------- None Achievements -------------- None Challenges ------------ None Game ------ Seed SingularityOpticalSlayer Manual? 0 Play Time 00:08:18 Cumulative 820.3 hours Start 2023.07.29 @ 23:41:29 End 2023.07.29 @ 23:48:24 Sessions 1 Manual Loads 0 Difficulty Rogue Special Mode None Game No. 713 Rogue 713 Adventurer 0 Explorer 0 Win Type - Total 40 Types 14/7/8/1/1/1/6/1/1 Lore% 93 Gallery% 96 Achievement% 82 Wizard Run 0 Options --------- ASCII 0 Keyboard 0 Movement Mouse Keybinds 1 Fullscreen 2 Font 24/Smallcaps Map View 76x50 Tactical HUD 1 Map Filters NONE Filters NONE Steam 1 RUN: 7fe2b965-600f-45ca-b513-4e134049beaa